bitfinex/quotes_SOLUSD_20220311
["timestamp","ask_amount","ask_price","bid_price","bid_amount"]
[1646998887313,1.65350286,83.138,83.031,73.52]
[1646998887515,1.65350286,83.145,83.041,73.52]
[1646998887714,7.67150286,83.152,83.053,73.52]
[1646998887915,61.50218666,83.134,83.057,73.52]
[1646998888113,61.50218666,83.134,83.07,17.35]
[1646998888314,6.017,83.151,83.071,79.52]
[1646998888523,6.017,83.163,83.081,73.52]
[1646998888820,6.016,83.166,83.09,17.35]
[1646998889017,1.65350286,83.183,83.1,17.35]
[1646998889215,1.65350286,83.191,83.101,79.52]
[1646998889417,6.013,83.19,83.11,231.2402]
[1646998889619,6.013,83.19,83.111,73.52]
[1646998889854,1.65350286,83.227,83.12,17.35]
[1646998890016,6.013,83.238,83.12,17.35]
[1646998890017,1.65350286,83.226,83.121,6.0]
[1646998890215,1.65350286,83.223,83.121,6.0]
[1646998890415,12.55822812,83.237,83.13,14.4235]
[1646998890617,7.0,83.244,83.14,17.35]
[1646998890817,7.0,83.244,83.141,0.25]
[1646998891016,7.0,83.25,83.15,264.8717]
[1646998891216,7.0,83.25,83.171,73.52]
[1646998891419,7.0,83.25,83.173,73.52]
[1646998891615,7.0,83.25,83.19,14.4094]
[1646998891821,7.0,83.25,83.2,17.35]
[1646998892016,7.0,83.25,83.201,134.507]
[1646998892217,6.008,83.31,83.21,216.82]
[1646998892424,10.73407,83.31,83.211,6.255]
[1646998892617,6.008,83.31,83.24,14.3984]
[1646998892819,6.008,83.31,83.241,11.503]
[1646998893017,6.008,83.31,83.25,17.35]
[1646998893219,0.04323061,83.311,83.251,6.0]
[1646998893618,0.04323061,83.311,83.252,6.003]
[1646998893821,0.04323061,83.311,83.25,234.17]
[1646998894220,0.04323061,83.311,83.25,17.35]
[1646998895226,0.04323061,83.311,83.251,6.0]
[1646998895422,0.04323061,83.311,83.252,6.003]
[1646998895622,0.04323061,83.311,83.253,6.0]
[1646998895831,0.04323061,83.311,83.254,6.003]
[1646998896020,0.04323061,83.311,83.257,122.5]
[1646998896222,0.04323061,83.311,83.27,17.35]
[1646998896424,0.04323061,83.311,83.272,5.83654264]
[1646998896626,0.00323061,83.311,83.273,6.003]
[1646998896924,6.002,83.423,83.281,196.02]
[1646998897122,6.0,83.433,83.301,196.02]
[1646998897319,6.0,83.433,83.311,122.5]
[1646998897520,6.0,83.433,83.32,17.35]
[1646998897920,51.32921719,83.432,83.321,9.04447957]
[1646998898121,5.998,83.431,83.321,9.04447957]
[1646998898323,5.998,83.431,83.322,7.8191113]
[1646998898521,5.998,83.431,83.323,6.0]
[1646998898723,5.998,83.431,83.324,5.35751129]
[1646998898922,5.998,83.431,83.325,6.0]
[1646998899126,5.998,83.431,83.325,11.998]
[1646998899323,5.998,83.431,83.33,14.42]
[1646998899524,1.245e-05,83.376,83.331,6.0]
[1646998899727,1.245e-05,83.376,83.332,5.44935786]
[1646998899930,1.245e-05,83.376,83.333,11.998]
[1646998900130,1.245e-05,83.376,83.333,75.0303735]
[1646998900331,1.245e-05,83.376,83.333,78.07485307]
[1646998900532,0.06001245,83.376,83.334,3.04447957]
[1646998900740,0.06001245,83.376,83.335,11.998]
[1646998901134,0.06001245,83.376,83.336,3.04447957]
[1646998901336,1.245e-05,83.376,83.35,14.42]
[1646998901534,1.245e-05,83.376,83.351,17.48476679]
[1646998901734,1.245e-05,83.376,83.351,20.52924636]
[1646998901932,1.245e-05,83.376,83.351,17.48476679]
[1646998902138,1.245e-05,83.376,83.352,3.04447957]
[1646998902335,1.245e-05,83.376,83.351,5.997]
[1646998902533,1.245e-05,83.376,83.332,3.04447957]
[1646998902734,1.245e-05,83.376,83.32,50.83267957]
[1646998902933,1.245e-05,83.376,83.33,14.42]
[1646998903341,1.245e-05,83.376,83.31,3.04447957]
[1646998903535,1.245e-05,83.376,83.31,14.42]
[1646998903935,63.880124,83.374,83.284,29.62088319]
[1646998904138,63.880124,83.374,83.3,14.42]
[1646998904537,3.04447957,83.373,83.3,14.42]
[1646998904736,3.04447957,83.373,83.301,3.04447957]
[1646998904959,63.880124,83.374,83.301,3.04447957]
[1646998905160,63.880124,83.374,83.3,14.42]
[1646998905358,3.04447957,83.373,83.28,37.0763]
[1646998905766,63.880124,83.374,83.28,37.0763]
[1646998906061,63.880124,83.374,83.295,33.73612584]
[1646998906262,63.880124,83.374,83.3,14.42]
[1646998906661,63.880124,83.374,83.301,29.62088319]
[1646998907162,63.880124,83.374,83.302,9.04447957]
[1646998907362,63.880124,83.374,83.302,6.0]
[1646998907562,63.880124,83.374,83.303,29.62088319]
[1646998907764,63.880124,83.374,83.304,6.0]
[1646998908562,63.880124,83.374,83.305,29.62088319]
[1646998908763,63.880124,83.374,83.306,6.0]
[1646998908964,63.880124,83.374,83.304,6.0]
[1646998909367,63.880124,83.374,83.301,6.0]
[1646998910264,63.880124,83.374,83.301,35.62088319]
[1646998910465,63.880124,83.374,83.301,6.0]
[1646998911066,9.04247957,83.373,83.281,3.04447957]
[1646998911267,9.04247957,83.373,83.274,29.62088319]
[1646998911567,3.04447957,83.372,83.262,55.3759522]
[1646998911772,6.0,83.371,83.269,25.75506901]
[1646998911969,6.0,83.373,83.269,25.75506901]
[1646998912168,6.0,83.373,83.263,4.84243909]
[1646998912365,3.04447957,83.37,83.263,4.84243909]
[1646998912568,6.0,83.369,83.262,29.62088319]
[1646998912770,6.0,83.369,83.261,28.79954858]
[1646998912969,3.04447957,83.37,83.264,5.91174833]
[1646998913170,3.04447957,83.368,83.28,48.41136901]
[1646998913374,3.04447957,83.368,83.28,22.6563]
[1646998913572,6.0,83.367,83.261,3.04447957]
[1646998913872,5.0066,83.367,83.25,14.42]
[1646998914077,63.880124,83.374,83.264,73.52]
[1646998914078,3.04447957,83.366,83.264,73.52]
[1646998914272,63.880124,83.374,83.278,3.04447957]
[1646998914476,6.0,83.428,83.291,196.02]
[1646998914672,5.998,83.433,83.292,0.993]
[1646998914872,17.9919,83.43,83.293,4.49008838]
[1646998915072,5.997,83.429,83.294,0.993]
[1646998915376,5.997,83.452,83.3,73.52]
[1646998915575,5.997,83.452,83.299,122.5]
[1646998915576,5.997,83.433,83.31,14.42]
[1646998915773,5.997,83.433,83.311,0.9929]
[1646998915774,56.8950291,83.432,83.311,0.9929]
[1646998916073,48.0886078,83.419,83.311,10.03737957]
[1646998916272,5.997,83.418,83.311,9.04447957]
[1646998916480,5.997,83.418,83.312,3.04447957]
[1646998916675,5.997,83.418,83.313,6.0]
[1646998916981,5.997,83.418,83.313,159.70542844]
[1646998917179,48.0886078,83.419,83.318,73.52]
[1646998917373,5.997,83.433,83.325,122.5]
[1646998917572,12.52464615,83.452,83.351,200.57780265]
[1646998917773,6.26065217,83.524,83.351,200.57780265]
[1646998917774,5.996,83.502,83.372,5.06538782]
[1646998917974,5.992,83.517,83.381,196.02]
[1646998918175,5.992,83.517,83.38,194.68]
[1646998918176,5.992,83.517,83.383,196.02]
[1646998918374,54.38763472,83.516,83.384,0.9919]
[1646998918575,5.99,83.515,83.383,6.0]
[1646998918774,5.99,83.515,83.384,31.33773881]
[1646998918977,1.65350286,83.525,83.385,35.28515924]
[1646998919179,8.09605464,83.671,83.566,3.04447957]
[1646998919375,17.6891,83.691,83.566,3.04447957]
[1646998919376,17.6891,83.691,83.661,73.52]
[1646998919581,8.12594429,83.729,83.681,122.5]
[1646998919774,26.37834217,83.782,83.681,122.5]
[1646998919775,13.18639506,83.78,83.72,57.1206866]
[1646998919975,122.5,83.777,83.655,3.04447957]
[1646998920179,122.5,83.777,83.48,360.53]
[1646998920180,212.6047,83.77,83.56,27.2]
[1646998920375,32.3447,83.77,83.571,4.55765509]
[1646998920575,4.72607,83.769,83.572,6.0]
[1646998920776,5.975,83.768,83.572,6.0]
[1646998920980,5.975,83.768,83.571,4.55765509]
[1646998920981,122.5,83.749,83.571,4.55765509]
[1646998921176,122.5,83.709,83.56,12.78]
[1646998921376,52.39227534,83.689,83.56,12.78]
[1646998921576,14.42,83.68,83.562,4.6828]
[1646998921779,5.979,83.679,83.562,4.6828]
[1646998922598,180.26,83.67,83.562,4.6828]
[1646998922780,194.68,83.66,83.56,12.78]
[1646998922977,128.48,83.659,83.56,12.78]
[1646998923380,3.04447957,83.658,83.56,12.78]
[1646998923582,172.71633644,83.639,83.56,12.78]
[1646998923779,122.5,83.629,83.516,6.25175939]
[1646998923978,122.5,83.619,83.516,6.25175939]
[1646998924180,122.5,83.607,83.535,0.0001]
[1646998924380,49.23388209,83.608,83.535,0.0001]
[1646998924581,14.42,83.6,83.535,0.0001]
[1646998924781,5.983,83.599,83.535,0.0001]
[1646998925180,3.04447957,83.599,83.431,127.91329372]
[1646998925379,14.42,83.6,83.416,5.94746622]
[1646998925582,14.42,83.6,83.43,14.42]
[1646998925879,14.42,83.6,83.431,5.27824628]
[1646998926080,14.42,83.6,83.43,19.6]
[1646998926081,34.54002084,83.599,83.43,14.42]
[1646998926287,34.54002084,83.599,83.418,5.29476634]
[1646998926288,122.5,83.598,83.418,5.29476634]
[1646998926484,122.5,83.598,83.415,24.8115]
[1646998926485,122.5,83.589,83.415,24.8115]
[1646998926686,5.64399012,83.596,83.415,24.8115]
[1646998926687,122.5,83.579,83.415,24.8115]
[1646998926886,51.84996671,83.587,83.415,24.8115]
[1646998926887,14.42,83.57,83.415,24.8115]
[1646998927087,54.85282985,83.568,83.416,4.69099]
[1646998927393,122.5,83.567,83.416,4.69099]
[1646998927585,5.988,83.566,83.415,24.8115]
[1646998928185,3.04447957,83.565,83.415,24.8115]
[1646998928388,122.5,83.549,83.415,24.8115]
[1646998928589,122.5,83.547,83.415,24.8115]
[1646998928790,5.989,83.546,83.415,24.8115]
[1646998929293,5.61515247,83.544,83.324,4.65885916]
[1646998929490,122.5,83.545,83.324,11.65885916]
[1646998929491,122.5,83.519,83.324,11.65885916]
[1646998929691,122.5,83.499,83.324,4.65885916]
[1646998929995,122.5,83.496,83.325,3.04447957]
[1646998930290,122.5,83.489,83.325,3.04447957]
[1646998930490,5.994,83.488,83.326,6.0]
[1646998930690,5.994,83.488,83.325,3.04447957]
[1646998930889,5.994,83.488,83.326,3.04447957]
[1646998931113,14.42,83.49,83.416,0.03]
[1646998931715,48.25757619,83.497,83.416,0.03]
[1646998932716,5.99,83.496,83.416,0.03]
[1646998934613,128.49,83.496,83.416,0.03]
[1646998934816,5.99,83.496,83.416,0.03]
[1646998935920,48.25757619,83.497,83.416,0.03]
[1646998936116,0.1166,94.33,83.416,0.03]
[1646998936117,5.99,83.539,83.416,0.03]
[1646998936316,14.42,83.53,83.416,0.03]
[1646998936517,5.989,83.529,83.416,0.03]
[1646998936717,5.989,83.539,83.417,2.54447957]
[1646998936917,14.42,83.56,83.418,6.25]
[1646998937119,5.988,83.559,83.419,4.57882409]
[1646998937320,63.85489562,83.558,83.42,20.612]
[1646998937520,63.85489562,83.558,83.42,6.25]
[1646998937717,63.85489562,83.558,83.42,9.29447957]
[1646998937917,5.988,83.557,83.421,3.04447957]
[1646998938318,5.988,83.557,83.422,6.0]
[1646998938938,128.488,83.557,83.42,6.0]
[1646998939128,128.488,83.557,83.418,6.0]
[1646998939328,128.488,83.557,83.416,0.03]
[1646998940736,122.5,83.549,83.393,465.91812843]
[1646998940932,122.5,83.519,83.393,465.91812843]
[1646998941132,122.5,83.509,83.393,465.91812843]
[1646998941332,5.99,83.508,83.393,465.91812843]
[1646998941535,5.99,83.508,83.373,24.9239]
[1646998942136,5.992,83.509,83.374,134.30838807]
[1646998942362,5.992,83.509,83.382,122.5]
[1646998942533,5.992,83.509,83.384,122.5]
[1646998942737,5.992,83.509,83.385,6.0]
[1646998942933,5.992,83.509,83.383,10.4498465]
[1646998943334,122.5,83.509,83.383,6.0]
[1646998943535,122.5,83.509,83.376,6.0]
[1646998943936,5.992,83.508,83.376,6.0]
[1646998944635,5.992,83.508,83.377,3.04447957]
[1646998944835,5.992,83.508,83.378,6.0]
[1646998945240,14.42,83.51,83.379,3.04447957]
[1646998945438,14.42,83.51,83.38,6.0]
[1646998945837,14.42,83.51,83.38,9.04447957]
[1646998946039,14.42,83.51,83.381,73.52]
[1646998946240,14.42,83.51,83.383,5.26626157]
[1646998946641,5.99,83.509,83.384,6.0]
[1646998948443,0.06,83.51,83.393,73.52]
[1646998948653,0.06,83.51,83.401,196.02]
[1646998948842,0.06,83.51,83.402,0.25]
[1646998949042,0.06,83.51,83.403,196.02]
[1646998949244,0.06,83.51,83.43,14.3679]
[1646998949446,0.06,83.51,83.431,6.0]
[1646998950073,0.06,83.51,83.405,6.0]
[1646998950274,0.06,83.51,83.404,6.0]
[1646998950476,122.5,83.509,83.401,6.0]
[1646998950671,122.5,83.509,83.394,6.0]
[1646998950872,122.5,83.509,83.394,202.02]
[1646998951870,122.5,83.509,83.394,79.52]
[1646998952079,122.5,83.509,83.394,6.0]
[1646998952273,5.99,83.508,83.385,6.0]
[1646998952872,122.5,83.507,83.375,6.0]
[1646998953075,122.5,83.499,83.375,128.5]
[1646998953271,136.92,83.49,83.376,73.52]
[1646998953470,136.92,83.49,83.377,6.0]
[1646998954070,136.92,83.49,83.374,72.727]
[1646998954071,136.92,83.49,83.375,6.0]
[1646998954772,136.92,83.49,83.375,128.5]
[1646998954977,14.42,83.49,83.381,122.5]
[1646998955174,14.42,83.49,83.38,73.52]
[1646998955175,14.42,83.49,83.395,122.5]
[1646998955371,14.42,83.49,83.396,6.0]
[1646998955575,14.42,83.49,83.405,122.5]
[1646998955772,0.06,83.51,83.41,73.52]
[1646998955773,5.99,83.509,83.41,73.52]
[1646998955974,5.99,83.509,83.397,8.05989446]
[1646998955975,5.99,83.509,83.421,122.5]
[1646998956173,0.06,83.51,83.434,73.52]
[1646998956375,0.06,83.51,83.437,4.01900356]
[1646998956577,0.06,83.51,83.438,6.0]
[1646998957177,0.06,83.51,83.437,6.0]
[1646998957578,0.06,83.498,83.432,73.52]
[1646998957776,0.06,83.498,83.444,73.52]
[1646998957987,0.06,83.498,83.445,6.0]
[1646998959178,0.06,83.498,83.443,381.68988465]
[1646998959975,0.06,83.498,83.444,6.0]
[1646998960782,0.06,83.498,83.443,381.68988465]
[1646998961381,122.56,83.498,83.443,381.68988465]
[1646998961782,122.56,83.498,83.39,119.12992561]
[1646998961984,122.56,83.498,83.369,61.09]
[1646998962180,5.992,83.497,83.369,61.09]
[1646998962380,0.06,83.498,83.382,73.52]
[1646998962580,0.06,83.498,83.4,14.3757]
[1646998962980,0.06,83.498,83.401,6.0]
[1646998963179,0.06,83.498,83.401,202.02]
[1646998963385,0.06,83.498,83.401,79.52]
[1646998963585,0.06,83.498,83.404,196.02]
[1646998963782,0.06,83.498,83.41,14.3738]
[1646998963981,0.06,83.498,83.411,85.51]
[1646998964383,0.06,83.498,83.414,196.02]
[1646998964583,0.06,83.498,83.416,73.52]
[1646998964786,0.06,83.498,83.418,73.52]
[1646998964983,0.06,83.498,83.42,73.52]
[1646998965183,0.06,83.498,83.421,5.99]
[1646998965385,0.06,83.498,83.422,6.0]
[1646998966687,63.25712364,83.518,83.43,14.3718]
[1646998966887,62.75712364,83.518,83.431,6.0]
[1646998967088,100.24050099,83.513,83.431,6.0]
[1646998967289,62.75712364,83.518,83.431,6.0]
[1646998967488,0.06,83.527,83.432,5.989]
[1646998967689,0.06,83.527,83.437,73.52]
[1646998967888,0.06,83.527,83.438,5.989]
[1646998968188,0.06,83.527,83.44,14.37]
[1646998968392,0.06,83.527,83.441,6.0]
[1646998968788,0.06,83.527,83.442,5.989]
[1646998968989,0.06,83.527,83.443,6.0]
[1646998969191,0.06,83.527,83.444,5.989]
[1646998969393,0.06,83.527,83.445,6.0]
[1646998969590,0.06,83.527,83.446,5.989]
[1646998969791,0.06,83.527,83.447,6.0]
[1646998969991,0.06,83.527,83.45,14.3691]
[1646998970190,0.06,83.527,83.451,6.0]
[1646998970391,0.06,83.527,83.451,79.52]
[1646998970591,0.06,83.527,83.452,5.988]
[1646998970791,0.06,83.527,83.454,196.02]
[1646998970994,0.06,83.527,83.455,5.988]
[1646998971191,0.06,83.527,83.456,6.0]
[1646998971392,0.06,83.527,83.457,5.988]
[1646998971593,0.06,83.527,83.46,14.3671]
[1646998971793,0.06,83.527,83.461,6.0]
[1646998971992,0.06,83.527,83.442,6.0]
[1646998972192,0.06,83.527,83.443,5.56255356]
[1646998972393,0.06,83.527,83.444,73.52]
[1646998972592,0.06,83.527,83.443,11.55155356]
[1646998972593,0.06,83.527,83.449,122.5]
[1646998972792,0.06,83.527,83.448,73.52]
[1646998972793,0.06,83.527,83.464,73.52]
[1646998972994,0.06,83.527,83.465,11.988]
[1646998973196,0.06,83.527,83.465,6.0]
[1646998973598,0.06,83.527,83.444,6.0]
[1646998973795,0.06,83.527,83.446,5.05206117]
[1646998973996,0.06,83.527,83.457,4.94178987]
[1646998974196,0.06,83.527,83.459,73.52]
[1646998974397,122.5,83.56,83.464,73.52]
[1646998974601,5.988,83.594,83.466,73.52]
[1646998974798,66.84050099,83.587,83.471,73.52]
[1646998975000,66.84050099,83.587,83.477,73.52]
[1646998975197,26.55820794,83.626,83.472,11.985]
[1646998975198,122.5,83.6,83.484,122.5]
[1646998975397,122.5,83.6,83.48,5.61114965]
[1646998975398,122.5,83.6,83.487,73.52]
[1646998975599,122.5,83.6,83.49,5.14546586]
[1646998975801,14.42,83.61,83.501,73.52]
[1646998975802,122.5,83.609,83.501,73.52]
[1646998975997,32.3668,83.61,83.507,73.52]
[1646998976221,5.982,83.609,83.509,73.52]
[1646998976420,5.982,83.609,83.51,6.0]
[1646998976821,203.14417067,83.61,83.51,6.0]
[1646998977023,185.19737067,83.61,83.52,14.3572]
[1646998977222,62.69737067,83.61,83.521,6.0]
[1646998977420,185.19737067,83.61,83.521,6.0]
[1646998977622,5.982,83.609,83.487,73.52]
[1646998977820,63.21831389,83.609,83.504,523.80394517]
[1646998978022,17.9554,83.58,83.504,523.80394517]
[1646998978220,122.5,83.577,83.504,523.80394517]
[1646998978620,5.985,83.576,83.504,523.80394517]
[1646998978823,122.5,83.569,83.504,523.80394517]
[1646998979019,14.42,83.56,83.504,523.80394517]
[1646998979218,46.58657602,83.558,83.504,523.80394517]
[1646998979420,122.5,83.557,83.504,523.80394517]
[1646998979922,122.5,83.557,83.462,5.985]
[1646998980422,122.5,83.557,83.47,14.3663]
[1646998980624,122.5,83.557,83.471,5.987]
[1646998980823,122.5,83.557,83.462,5.987]
[1646998981021,122.5,83.555,83.448,388.66356891]
[1646998981223,5.987,83.554,83.448,388.66356891]
[1646998981423,5.987,83.554,83.45,14.37]
[1646998981424,14.42,83.54,83.45,14.37]
[1646998981622,122.5,83.537,83.451,5.988]
[1646998981825,14.42,83.54,83.425,196.02]
[1646998982020,122.5,83.56,83.431,3.04447957]
[1646998982223,136.92,83.56,83.433,5.05447512]
[1646998982424,136.92,83.56,83.434,0.25]
[1646998982622,136.92,83.56,83.46,14.3683]
[1646998982823,122.5,83.558,83.435,5.987]
[1646998983023,122.5,83.558,83.436,6.0]
[1646998983223,122.5,83.558,83.437,5.988]
[1646998983422,122.5,83.558,83.438,6.0]
[1646998983621,53.05193207,83.559,83.44,14.371]
[1646998983827,53.05193207,83.559,83.442,196.02]
[1646998984030,53.05193207,83.559,83.444,196.02]
[1646998984225,53.05193207,83.559,83.446,196.02]
[1646998984425,53.05193207,83.559,83.452,196.02]
[1646998984628,14.42,83.56,83.454,196.02]
[1646998984828,14.42,83.56,83.456,196.02]
[1646998985033,5.987,83.602,83.471,196.02]
[1646998985231,14.42,83.58,83.473,196.02]
[1646998985436,5.985,83.6,83.475,196.52]
[1646998985638,5.986,83.641,83.485,0.5]
[1646998985828,14.42,83.63,83.486,5.982]
[1646998986029,17.9442,83.62,83.51,14.3573]
[1646998986228,122.5,83.619,83.489,73.52]
[1646998986428,122.5,83.619,83.49,11.984]
[1646998986429,5.984,83.618,83.49,11.984]
[1646998986632,62.08392903,83.617,83.491,73.52]
[1646998986828,5.984,83.616,83.493,73.52]
[1646998987029,5.984,83.647,83.495,74.03]
[1646998987333,5.982,83.649,83.505,0.51]
[1646998987534,5.982,83.649,83.507,4.0769425]
[1646998987733,5.982,83.659,83.521,196.02]
[1646998987941,17.9344,83.66,83.523,196.02]
[1646998988130,17.9344,83.66,83.525,196.02]
[1646998988333,17.9344,83.66,83.541,73.52]
[1646998988537,5.98,83.659,83.548,122.5]
[1646998988732,32.03552957,83.66,83.557,73.52]
[1646998988932,62.68524817,83.659,83.558,128.48]
[1646998989138,56.70524817,83.659,83.564,196.02]
[1646998989332,5.98,83.691,83.571,196.02]
[1646998989333,14.42,83.69,83.571,196.02]
[1646998989534,14.42,83.69,83.573,122.5]
[1646998989735,14.42,83.71,83.579,122.5]
[1646998989933,5.977,83.709,83.583,122.5]
[1646998990132,5.977,83.709,83.582,73.52]
[1646998990133,5.977,83.709,83.591,122.5]
[1646998990434,5.977,83.739,83.6,14.3402]
[1646998990633,5.977,83.739,83.601,202.244]
[1646998990833,5.977,83.739,83.605,0.58]
[1646998991036,5.977,83.739,83.615,0.59]
[1646998991234,5.974,83.759,83.62,14.42]
[1646998991435,60.8563353,83.758,83.64,14.3316]
[1646998991637,60.8563353,83.758,83.641,79.493]
[1646998991835,60.8563353,83.758,83.641,5.973]
[1646998992037,5.973,83.757,83.642,6.0]
[1646998992235,17.9165,83.75,83.642,6.0]
[1646998992434,32.3365,83.75,83.642,6.0]
[1646998992637,32.3365,83.75,83.643,5.974]
[1646998992934,32.3365,83.75,83.644,6.0]
[1646998993135,32.3365,83.75,83.645,5.973]
[1646998993343,29.47375541,83.749,83.625,5.973]
[1646998993538,56.77868745,83.749,83.626,6.0]
[1646998993738,54.91102232,83.719,83.626,6.0]
[1646998993937,54.91102232,83.719,83.627,5.974]
[1646998994146,27.30493204,83.718,83.618,5.974]
[1646998994439,27.30493204,83.718,83.586,5.976]
[1646998994739,27.30493204,83.718,83.587,5.4863551]
[1646998994941,17.9269,83.71,83.59,14.3423]
[1646998995238,14.42,83.71,83.591,5.977]
[1646998995438,14.42,83.71,83.592,5.7847145]
[1646998995642,14.42,83.71,83.592,11.7847145]
[1646998996041,32.3466,83.71,83.592,6.0]
[1646998996240,33.28193204,83.709,83.593,5.977]
[1646998996543,33.28193204,83.709,83.576,22.7594]
[1646998996544,14.42,83.71,83.586,5.23900756]
[1646998996743,14.42,83.71,83.587,5.977]
[1646998996945,14.42,83.71,83.584,145.2044]
[1646998996946,5.977,83.709,83.585,9.02147957]
[1646998997146,5.977,83.709,83.585,3.04447957]
[1646998997344,17.9289,83.7,83.584,22.7044]
[1646998997541,14.42,83.69,83.585,5.977]
[1646998998445,54.78939544,83.679,83.585,5.977]
[1646998998644,54.78939544,83.679,83.586,6.0]
[1646998998844,54.78939544,83.679,83.587,5.978]
[1646998999044,14.42,83.7,83.587,11.50171949]
[1646998999248,14.42,83.7,83.588,73.52]
[1646998999445,14.42,83.7,83.591,73.52]
[1646998999646,3.04447957,83.742,83.588,3.04447957]
[1646998999846,5.976,83.746,83.592,3.04447957]
[1646999000047,59.06683322,83.738,83.596,73.52]
[1646999000349,14.42,83.77,83.621,196.02]
[1646999000545,32.3344,83.77,83.65,16.1236]
[1646999000747,5.973,83.769,83.65,16.1236]
[1646999001146,52.05069598,83.768,83.65,16.1236]
[1646999001347,52.05069598,83.768,83.651,82.56447957]
[1646999001348,5.973,83.767,83.651,82.56447957]
[1646999001552,5.973,83.767,83.652,127.73465668]
[1646999001751,0.00886932,83.698,83.661,196.02]
[1646999001947,0.00886932,83.698,83.665,0.48]
[1646999002151,45.6634,83.849,83.685,0.48]
[1646999002152,5.974,83.809,83.685,0.48]
[1646999002386,5.97,83.829,83.691,196.02]
[1646999002551,24.93927119,83.868,83.695,0.48]
[1646999002552,5.969,83.867,83.695,0.48]
[1646999002749,66.00702568,83.835,83.711,73.52]
[1646999002950,5.968,83.834,83.711,73.52]
[1646999003148,5.968,83.834,83.713,4.83947784]
[1646999003350,66.00702568,83.835,83.714,6.0]
[1646999003549,66.00702568,83.835,83.715,0.25]
[1646999003849,66.00702568,83.835,83.73,16.1074]
[1646999004048,66.00702568,83.835,83.731,6.0]
[1646999004450,71.97302568,83.835,83.731,6.0]
[1646999004654,71.97302568,83.835,83.701,4.33137414]
[1646999004849,71.97302568,83.835,83.702,6.0]
[1646999005051,32.3218,83.83,83.702,6.0]
[1646999005451,14.42,83.83,83.703,3.04447957]
[1646999005657,66.00702568,83.835,83.704,6.0]
[1646999005853,5.968,83.834,83.704,6.0]
[1646999006053,9.01247957,83.834,83.704,6.0]
[1646999006256,14.42,83.83,83.697,6.0]
[1646999006452,5.969,83.829,83.697,6.0]
[1646999006861,14.42,83.83,83.698,5.99396655]
[1646999007064,14.42,83.83,83.699,6.0]
[1646999007863,5.969,83.829,83.7,3.04447957]
[1646999008064,66.00702568,83.835,83.721,73.52]
[1646999008261,66.00702568,83.835,83.72,16.108]
[1646999008463,66.00702568,83.835,83.722,3.04447957]
[1646999008764,66.00702568,83.835,83.723,0.25]
[1646999008963,66.00702568,83.835,83.723,6.25]
[1646999009162,66.00702568,83.835,83.71,14.42]
[1646999009163,66.00702568,83.835,83.724,8.19954888]